bitfinex-derivatives/quotes_BTCF0:USTF0_20250315
["timestamp","ask_amount","ask_price","bid_price","bid_amount"]
[1742030093971,0.5437411,83862.0,83861.0,0.3152]
[1742030094365,0.5437411,83862.0,83861.0,0.0652]
[1742030094769,0.5437411,83862.0,83861.0,0.3352]
[1742030094967,0.5437411,83862.0,83861.0,0.0652]
[1742030095169,0.5437411,83862.0,83861.0,0.4352]
[1742030098179,0.1829411,83862.0,83861.0,0.4352]
[1742030099681,0.5437411,83862.0,83861.0,0.4352]
[1742030100274,0.5437411,83862.0,83861.0,0.001]
[1742030100669,0.5437411,83862.0,83861.0,0.231]
[1742030100871,0.5437411,83862.0,83861.0,0.2611]
[1742030101065,0.7577467,83862.0,83861.0,0.0311]
[1742030101280,0.9977467,83862.0,83861.0,0.001]
[1742030105574,0.1192425,83861.0,83860.0,0.00017878]
[1742030105774,0.3332481,83861.0,83860.0,0.00017878]
[1742030105986,0.3979481,83861.0,83860.0,0.00017878]
[1742030106885,0.3999481,83861.0,83860.0,0.00017878]
[1742030108185,0.4029481,83861.0,83860.0,0.00017878]
[1742030113177,0.4029481,83861.0,83860.0,0.03027878]
[1742030116479,0.005,83861.0,83860.0,0.14952268]
[1742030116673,0.005,83861.0,83860.0,0.43152268]
[1742030117084,0.005,83861.0,83860.0,0.44423917]
[1742030117989,0.1242425,83861.0,83860.0,0.44423917]
[1742030118191,0.005,83861.0,83860.0,0.44423917]
[1742030118491,0.1242425,83861.0,83860.0,0.44423917]
[1742030121077,0.1242425,83861.0,83860.0,0.04299527]
[1742030121276,0.1242425,83861.0,83860.0,0.07609527]
[1742030121680,0.1572425,83861.0,83860.0,0.07609527]
[1742030121876,0.1897425,83861.0,83860.0,0.07609527]
[1742030122398,0.1242425,83861.0,83860.0,0.31609527]
[1742030122790,0.1242425,83861.0,83860.0,0.34609527]
[1742030123682,0.1242425,83861.0,83860.0,0.46533917]
[1742030130400,0.1242425,83861.0,83860.0,0.34609527]
[1742030130803,0.1556425,83861.0,83860.0,0.36609527]
[1742030131303,0.1862425,83861.0,83860.0,0.36609527]
[1742030132497,0.1242425,83861.0,83860.0,0.36609527]
[1742030132894,0.1242425,83861.0,83860.0,0.48533917]
[1742030137394,0.1552425,83861.0,83860.0,0.48533917]
[1742030140604,0.1242425,83861.0,83860.0,0.48533917]
[1742030140908,0.005,83861.0,83860.0,0.48533917]
[1742030141109,0.1242425,83861.0,83860.0,0.48533917]
[1742030141497,0.038,83861.0,83860.0,0.48533917]
[1742030141794,0.059611,83876.0,83870.0,0.1192283]
[1742030142102,0.3608,83872.0,83871.0,0.1822283]
[1742030142304,0.00017878,83877.0,83876.0,0.1192212]
[1742030142608,0.00178911,83879.0,83878.0,0.1192183]
[1742030142908,0.35577597,83883.0,83882.0,0.1192127]
[1742030143111,0.47498717,83883.0,83882.0,0.8592127]
[1742030143302,0.35577597,83883.0,83882.0,0.8592127]
[1742030143608,0.01118426,83898.0,83897.0,0.1191913]
[1742030143801,0.1191899,83898.0,83897.0,0.8791913]
[1742030144110,0.1191899,83898.0,83897.0,0.1191913]
[1742030144308,0.1191899,83898.0,83897.0,0.2291913]
[1742030144504,0.1191899,83898.0,83897.0,0.2914913]
[1742030145803,0.0909942,83900.0,83898.0,0.1191899]
[1742030145804,0.4799885,83899.0,83898.0,0.1191899]
[1742030146112,0.4799885,83899.0,83898.0,0.4214899]
[1742030146501,0.3608,83899.0,83898.0,0.4214899]
[1742030148115,0.3921,83899.0,83898.0,0.4214899]
[1742030148310,0.1495812,83905.0,83904.0,0.1191814]
[1742030148506,0.0313,83905.0,83904.0,0.6291814]
[1742030148899,0.15048,83905.0,83904.0,0.6291814]
[1742030149114,0.00017878,83906.0,83905.0,0.11918]
[1742030149319,0.00017878,83906.0,83905.0,0.40918]
[1742030149521,0.00017878,83906.0,83905.0,0.46978]
[1742030151015,0.11935738,83906.0,83905.0,0.46978]
[1742030151321,0.03217878,83906.0,83905.0,0.48240047]
[1742030151514,0.15135738,83906.0,83905.0,0.48240047]
[1742030152017,0.03217878,83906.0,83905.0,0.48240047]
[1742030152414,0.15135738,83906.0,83905.0,0.48240047]
[1742030153212,0.03217878,83906.0,83905.0,0.41240047]
[1742030153409,0.15135738,83906.0,83905.0,0.41240047]
[1742030154018,0.03217878,83906.0,83905.0,0.90240047]
[1742030154225,0.00117878,83906.0,83905.0,0.65240047]
[1742030155115,0.00117878,83906.0,83905.0,0.41240047]
[1742030155314,0.00117878,83906.0,83905.0,0.64240047]
[1742030157422,0.12035738,83906.0,83905.0,0.64240047]
[1742030157618,0.15255738,83906.0,83905.0,0.64240047]
[1742030158614,0.15255738,83906.0,83905.0,0.07322047]
[1742030158813,0.15255738,83906.0,83905.0,0.33322047]
[1742030158814,0.18575738,83906.0,83905.0,0.33322047]
[1742030159019,0.18575738,83906.0,83905.0,0.19240047]
[1742030159220,0.18575738,83906.0,83905.0,0.32322047]
[1742030159427,0.18575738,83906.0,83905.0,0.29292047]
[1742030159931,0.18575738,83906.0,83905.0,0.41210047]
[1742030160324,0.39976298,83906.0,83905.0,0.26262047]
[1742030160717,0.18575738,83906.0,83905.0,0.38180047]
[1742030161017,0.54655738,83906.0,83905.0,0.41400047]
[1742030161520,0.54655738,83906.0,83905.0,0.44520047]
[1742030161717,0.54655738,83906.0,83905.0,0.43258]
[1742030162217,0.76056298,83906.0,83905.0,0.40038]
[1742030162418,0.76056298,83906.0,83905.0,0.36918]
[1742030162823,0.119197,83893.0,83892.0,0.00942635]
[1742030163024,0.119197,83893.0,83892.0,0.36798475]
[1742030163324,0.119197,83893.0,83892.0,0.01282121]
[1742030163516,0.1192013,83890.0,83889.0,0.00017878]
[1742030163715,0.3332069,83890.0,83889.0,0.00017878]
[1742030163924,0.6940069,83890.0,83889.0,0.00017878]
[1742030164526,0.7269069,83890.0,83889.0,0.00017878]
[1742030165328,0.1192112,83883.0,83873.0,0.119225]
[1742030165519,0.6940168,83883.0,83882.0,0.01432086]
[1742030165714,0.6940168,83883.0,83882.0,0.00178818]
[1742030166129,0.1192226,83875.0,83874.0,0.0316]
[1742030166325,0.3332282,83875.0,83874.0,0.3116]
[1742030166526,0.3332282,83875.0,83866.0,0.3608]
[1742030166527,0.1192326,83869.0,83867.0,0.0632]
[1742030166725,0.1192326,83869.0,83868.0,0.1192314]
[1742030166924,0.4800326,83869.0,83868.0,0.3692314]
[1742030167132,0.4800326,83869.0,83868.0,0.4324314]
[1742030168528,0.4800326,83869.0,83868.0,0.9424314]
[1742030168824,0.4800326,83869.0,83868.0,0.4324314]
[1742030169030,0.4800326,83869.0,83868.0,0.4334314]
[1742030169729,0.4800326,83869.0,83868.0,0.4344314]
[1742030170328,0.1192326,83869.0,83868.0,0.9344314]
[1742030172329,0.1192238,83875.0,83874.0,0.1192226]
[1742030172632,0.3608,83876.0,83875.0,0.1192226]
[1742030172829,0.3608,83876.0,83875.0,0.9708226]
[1742030173419,0.4800212,83876.0,83875.0,0.9708226]
[1742030173732,0.1192212,83876.0,83875.0,0.8208226]
[1742030174122,0.0596092,83878.0,83877.0,0.1192198]
[1742030174325,0.0596092,83878.0,83877.0,0.5992198]
[1742030175329,0.0606092,83878.0,83877.0,0.1192198]
[1742030175533,0.0606092,83878.0,83877.0,0.2292198]
[1742030176325,0.001,83878.0,83877.0,0.4992198]
[1742030176520,0.001,83878.0,83877.0,0.8236198]
[1742030176724,0.00017878,83883.0,83882.0,0.1192127]
[1742030176938,0.00017878,83883.0,83882.0,0.8892127]
[1742030177634,0.00017878,83883.0,83882.0,1.3133127]
[1742030177837,0.0595978,83894.0,83893.0,0.1191956]
[1742030178032,0.0595978,83894.0,83893.0,0.3991956]
[1742030180625,0.3608,83895.0,83894.0,0.1191956]
[1742030180832,0.3608,83895.0,83894.0,0.4991956]
[1742030181337,0.05977098,83902.0,83898.0,0.1191899]
[1742030181338,0.1191891,83899.0,83898.0,0.1191899]
[1742030181526,0.0914931,83901.0,83900.0,0.1191871]
[1742030181723,0.1510857,83901.0,83900.0,0.6391871]
[1742030182736,0.1191885,83899.0,83898.0,0.0595942]
[1742030182928,0.1191885,83899.0,83898.0,0.3395942]
[1742030183323,0.0595963,83897.0,83894.0,0.01283732]
[1742030183537,0.1191942,83895.0,83894.0,0.3491942]
[1742030184036,0.1511942,83895.0,83894.0,0.36166271]
[1742030184231,0.1812942,83895.0,83894.0,0.36166271]
[1742030185529,0.2138942,83895.0,83894.0,0.36166271]
[1742030189334,0.2138942,83895.0,83894.0,0.84166271]
[1742030189534,0.2138942,83895.0,83894.0,0.36166271]
[1742030191244,0.2138942,83895.0,83894.0,0.39436271]
[1742030191641,0.032,83895.0,83894.0,0.39436271]
[1742030191942,0.3608,83897.0,83896.0,0.1191928]
[1742030192144,0.3608,83897.0,83896.0,0.8291928]
[1742030192336,0.4799913,83897.0,83896.0,0.8614928]
[1742030192943,0.05977278,83902.0,83896.0,0.8018961]
[1742030193146,0.1191913,83898.0,83897.0,0.1191901]
[1742030193337,0.1191913,83898.0,83897.0,1.0361301]
[1742030193538,0.1513913,83898.0,83897.0,1.1553202]
[1742030195441,0.1513913,83898.0,83897.0,1.1877202]
[1742030197846,0.1513913,83898.0,83897.0,0.6877202]
[1742030199248,0.3653969,83898.0,83897.0,0.27]
[1742030199452,0.119207,83886.0,83875.0,0.0318]
[1742030199644,0.1192183,83878.0,83875.0,0.0326]
[1742030199947,0.3332239,83878.0,83874.0,0.22526708]
[1742030200348,0.3989239,83878.0,83872.0,0.1192268]
[1742030200555,0.3989239,83878.0,83872.0,0.1192256]
[1742030200940,0.3989239,83878.0,83873.0,0.1192254]
[1742030201740,0.3989239,83878.0,83874.0,0.1192237]
[1742030201944,0.3989239,83878.0,83872.0,0.01281948]
[1742030205351,0.3989239,83878.0,83873.0,0.1192249]
[1742030205551,0.3989239,83878.0,83874.0,0.1192236]
[1742030205751,0.3989239,83878.0,83874.0,0.150823]
[1742030206055,0.3989239,83878.0,83875.0,0.150322]
[1742030206454,0.3989239,83878.0,83877.0,0.36100804]
[1742030211555,0.1849183,83878.0,83877.0,0.3592198]
[1742030212250,0.1523183,83878.0,83877.0,0.3592198]
[1742030212948,0.1523183,83878.0,83877.0,0.1192198]
[1742030213155,0.1523183,83878.0,83877.0,0.3792198]
[1742030213362,0.1192212,83876.0,83875.0,0.0311]
[1742030213661,0.1192212,83876.0,83875.0,0.2803217]
[1742030215251,0.1809212,83876.0,83875.0,0.2803217]
[1742030217657,0.1809212,83876.0,83875.0,0.0611]
[1742030217961,0.3949268,83876.0,83875.0,0.0611]
[1742030218468,0.3949268,83876.0,83875.0,0.0311]
[1742030219061,0.2757056,83876.0,83875.0,0.1503226]
[1742030219248,0.2757056,83876.0,83875.0,0.3903226]
[1742030219453,0.2757056,83876.0,83875.0,0.4205226]
[1742030220062,0.3949268,83876.0,83875.0,0.4205226]
[1742030221262,0.3949268,83876.0,83875.0,0.1805226]
[1742030222471,0.3949268,83876.0,83875.0,0.4405226]
[1742030223867,0.3637268,83876.0,83875.0,0.2905226]
[1742030224371,0.3965268,83876.0,83875.0,0.2905226]
[1742030224857,0.1192269,83872.0,83871.0,0.0596139]
[1742030225059,0.1788403,83872.0,83871.0,0.1]
[1742030225261,0.4237459,83872.0,83871.0,0.1]
[1742030225661,0.7845459,83872.0,83871.0,0.1333]
[1742030226267,0.8151459,83872.0,83871.0,0.1333]
[1742030227266,0.8151459,83872.0,83871.0,0.1638]
[1742030227868,0.8151459,83872.0,83871.0,0.0638]
[1742030232162,0.7845459,83872.0,83871.0,0.1830283]
[1742030232471,0.5748056,83872.0,83871.0,0.4330283]
[1742030232865,0.3608,83872.0,83871.0,0.4330283]
[1742030233473,0.3608,83879.0,83878.0,0.1192183]
[1742030233663,0.3608,83879.0,83878.0,0.3692183]
[1742030233863,0.3608,83879.0,83878.0,0.4299183]
[1742030233864,0.5748056,83879.0,83878.0,0.4299183]
[1742030234075,0.7536385,83879.0,83878.0,0.4299183]
[1742030234278,0.813249,83879.0,83878.0,0.3107]
[1742030234573,0.813249,83879.0,83878.0,0.0607]
[1742030234983,0.813249,83879.0,83878.0,0.0305]
[1742030235370,0.1192297,83870.0,83869.0,0.00017878]
[1742030235575,0.6940353,83870.0,83869.0,0.00017878]
[1742030236367,0.1192496,83857.0,83855.0,0.11925]
[1742030236568,0.1818496,83856.0,83855.0,0.38925]
[1742030236864,0.3639552,83856.0,83855.0,0.38925]
[1742030237477,0.3639552,83856.0,83855.0,0.39225]
[1742030237670,0.3639552,83856.0,83855.0,0.40467872]
[1742030237872,0.3332552,83856.0,83855.0,0.40467872]
[1742030238072,0.3332552,83856.0,83855.0,0.46927872]
[1742030238672,0.0596171,83867.0,83858.0,0.0596227]
[1742030238872,0.2140056,83861.0,83860.0,0.1192439]
[1742030239072,0.2140056,83861.0,83860.0,0.3992439]
[1742030239373,0.1192425,83861.0,83860.0,0.3992439]
[1742030240374,0.1192425,83861.0,83860.0,0.4012439]
[1742030241081,0.1192425,83861.0,83860.0,0.4032439]
[1742030241882,0.3608,83887.0,83860.0,0.8036212]
[1742030242176,0.2736196,83875.0,83874.0,0.1192183]
[1742030242372,0.2736196,83875.0,83874.0,0.3792183]
[1742030242569,0.059614,83875.0,83874.0,0.3792183]
[1742030243883,0.090114,83875.0,83874.0,0.3792183]
[1742030244179,0.3608,83879.0,83878.0,0.1192183]
[1742030244581,0.5748056,83879.0,83878.0,0.1192183]
[1742030244973,0.6940225,83879.0,83878.0,0.1192183]
[1742030245479,0.7556225,83879.0,83878.0,0.1192183]
[1742030246076,0.6364056,83879.0,83866.0,0.36097878]
[1742030246278,0.1788448,83872.0,83871.0,0.1192254]
[1742030246483,0.5396448,83872.0,83871.0,0.3992254]
[1742030247074,0.6322448,83872.0,83871.0,0.3992254]
[1742030247875,0.3912,83872.0,83871.0,0.3992254]
[1742030248076,0.4800182,83879.0,83878.0,0.1192183]
[1742030248288,0.4800182,83879.0,83878.0,0.3792183]
[1742030248588,0.6940238,83879.0,83878.0,0.3792183]
[1742030248782,0.7244238,83879.0,83878.0,0.3792183]
[1742030249486,0.6052056,83879.0,83878.0,0.3792183]
[1742030249680,0.5748056,83879.0,83878.0,0.3792183]
[1742030249995,0.6940225,83879.0,83878.0,0.1192183]
[1742030250287,0.7597225,83879.0,83878.0,0.1192183]
[1742030251387,0.7597225,83879.0,83878.0,0.1504183]
[1742030254691,0.6405056,83879.0,83878.0,0.2504183]
[1742030254992,0.7597225,83879.0,83878.0,0.2504183]
[1742030255188,0.5748056,83879.0,83878.0,0.5304183]
[1742030255387,0.5748056,83879.0,83878.0,0.2504183]
[1742030255593,0.5748056,83879.0,83878.0,0.2830183]
[1742030255780,0.6940225,83879.0,83878.0,0.2830183]
[1742030256795,0.5748056,83879.0,83878.0,0.2830183]
[1742030256981,0.3608,83879.0,83878.0,0.2830183]
[1742030257178,0.6940225,83879.0,83878.0,0.1830183]
[1742030257385,0.6940225,83879.0,83878.0,0.2930183]
[1742030257884,0.7548225,83879.0,83878.0,0.2930183]
[1742030263998,0.7548225,83879.0,83878.0,0.1830183]
[1742030264301,0.7548225,83879.0,83878.0,0.4230183]
[1742030266502,0.7548225,83879.0,83878.0,0.1830183]
[1742030267396,0.7548225,83879.0,83866.0,0.07204433]
[1742030267397,0.0596113,83876.0,83866.0,0.01242703]
[1742030267603,0.059614,83873.0,83872.0,0.1192261]
[1742030267800,0.059614,83873.0,83872.0,0.4636261]
[1742030268102,0.3343196,83873.0,83872.0,0.4636261]
[1742030272606,0.089914,83873.0,83872.0,0.4636261]
[1742030272808,0.089914,83873.0,83872.0,0.4948261]
[1742030274406,0.3608,83878.0,83877.0,0.1192198]
[1742030274603,0.5748056,83878.0,83877.0,0.3892198]
[1742030274805,0.5748056,83878.0,83877.0,0.4530198]
[1742030275309,0.7270239,83878.0,83877.0,0.4530198]
[1742030275601,0.6940239,83878.0,83877.0,0.4530198]
[1742030276003,0.7270239,83878.0,83877.0,0.4530198]
[1742030276202,0.7601239,83878.0,83877.0,0.4530198]
[1742030277809,0.0596152,83871.0,83870.0,0.1788384]
[1742030278002,0.0596152,83871.0,83870.0,0.4288384]
[1742030279614,0.0903152,83871.0,83870.0,0.4288384]
[1742030280019,0.1205152,83871.0,83870.0,0.4288384]
[1742030287121,0.0307,83871.0,83870.0,0.4288384]
[1742030287321,0.539629,83878.0,83877.0,0.1192198]
[1742030287510,0.539629,83878.0,83877.0,0.3492198]
[1742030287716,0.7536346,83878.0,83877.0,0.3492198]
[1742030288627,0.7536346,83878.0,83877.0,0.3824198]
[1742030289027,0.7536346,83878.0,83877.0,0.4138198]
[1742030289525,0.7840346,83878.0,83877.0,0.4138198]
[1742030290427,0.7840346,83878.0,83877.0,0.1838198]
[1742030296624,0.7840346,83878.0,83875.0,0.0596105]
[1742030296625,0.1192212,83876.0,83875.0,0.0596105]
[1742030296824,0.1788374,83874.0,83873.0,0.119224]
[1742030297028,0.333231,83873.0,83872.0,0.0306]
[1742030297239,0.1510254,83873.0,83872.0,0.4298269]
[1742030297929,0.1833254,83873.0,83872.0,0.4622269]
[1742030300222,0.1833254,83873.0,83872.0,0.343]
[1742030300419,0.1833254,83873.0,83872.0,0.4622269]
[1742030301535,0.397331,83873.0,83872.0,0.4622269]
[1742030301726,0.397331,83873.0,83872.0,0.343]
[1742030301921,0.397331,83873.0,83872.0,0.4622269]
[1742030306439,0.397331,83873.0,83872.0,0.343]
[1742030306740,0.397331,83873.0,83872.0,0.4622269]
[1742030306929,0.397331,83873.0,83872.0,0.28]
[1742030307329,0.1788482,83870.0,83867.0,0.0649]
[1742030307526,0.1192326,83868.0,83867.0,0.4541326]
[1742030307930,0.1835326,83868.0,83867.0,0.4541326]
[1742030308636,0.3975382,83868.0,83867.0,0.4541326]
[1742030308836,0.3975382,83868.0,83867.0,0.3349]
[1742030309032,0.3975382,83868.0,83867.0,0.0649]
[1742030309235,0.0596195,83864.0,83850.0,0.27411347]
[1742030309434,0.3332481,83861.0,83860.0,0.7784827]
[1742030309736,0.3332481,83861.0,83860.0,0.5084827]
[1742030310136,0.34790376,83861.0,83860.0,0.5084827]
[1742030310335,0.22866126,83861.0,83860.0,1.0084827]
[1742030310529,0.22866126,83861.0,83860.0,1.0104827]
[1742030310832,0.22866126,83861.0,83860.0,1.0124827]
[1742030311028,0.21773342,83861.0,83860.0,1.0124827]
[1742030311234,0.21773342,83861.0,83860.0,1.02485865]
[1742030311435,0.33697592,83861.0,83860.0,1.02485865]
[1742030311934,0.3332481,83861.0,83860.0,1.02485865]
[1742030316942,0.1192425,83861.0,83860.0,1.02485865]
[1742030317133,0.3646481,83861.0,83860.0,1.02485865]
[1742030318440,0.3646481,83861.0,83860.0,0.52485865]
[1742030318646,0.3646481,83861.0,83860.0,0.40561985]
[1742030318947,0.4276481,83861.0,83860.0,0.40561985]
[1742030320143,0.4276481,83861.0,83860.0,0.47001985]
[1742030320541,0.063,83861.0,83860.0,0.83081985]
[1742030320737,0.1192359,83866.0,83865.0,0.1788538]
[1742030320938,0.1192359,83866.0,83865.0,0.4488538]
[1742030321137,0.3963415,83866.0,83865.0,0.4488538]
[1742030321342,0.3963415,83866.0,83865.0,0.5130538]
[1742030321541,0.2771056,83866.0,83865.0,0.5130538]
[1742030321745,0.396341,83866.0,83865.0,0.5130538]
[1742030322347,0.396341,83866.0,83865.0,0.5140538]
[1742030329045,0.396341,83866.0,83865.0,0.2440538]
[1742030329246,0.396341,83866.0,83865.0,0.3540538]
[1742030330156,0.364541,83866.0,83865.0,0.3540538]
[1742030330857,0.394841,83866.0,83865.0,0.3540538]
[1742030331358,0.364541,83866.0,83865.0,0.3440538]
[1742030332242,5.364541,83866.0,83865.0,0.3440538]
[1742030333769,5.37572383,83866.0,83865.0,0.3440538]
[1742030334258,5.37572383,83866.0,83865.0,0.4540538]
[1742030335760,5.364541,83866.0,83865.0,0.4540538]
[1742030337557,5.395041,83866.0,83865.0,0.4540538]
[1742030341266,5.395041,83866.0,83865.0,0.3440538]
[1742030342152,5.395041,83866.0,83865.0,0.3306184]
[1742030342355,5.395041,83866.0,83865.0,0.0606184]
[1742030342761,5.395041,83866.0,83865.0,0.1258184]
[1742030344367,5.364541,83866.0,83865.0,0.3658184]
[1742030344666,5.397041,83866.0,83865.0,0.3658184]
[1742030346964,5.1830354,83866.0,83865.0,0.3658184]
[1742030347167,5.397041,83866.0,83865.0,0.3658184]
[1742030348168,5.1192354,83866.0,83865.0,0.8658184]
[1742030348361,5.1192354,83866.0,83865.0,0.5758184]
[1742030348860,5.1520354,83866.0,83865.0,0.5758184]
[1742030349261,5.1845354,83866.0,83865.0,0.5758184]
[1742030350071,5.1845354,83866.0,83865.0,0.3658184]
[1742030350269,5.1845354,83866.0,83865.0,0.6058184]
[1742030351764,5.1845354,83866.0,83865.0,0.3329184]
[1742030351964,5.1845354,83866.0,83865.0,0.3650184]
[1742030355670,5.398541,83866.0,83865.0,0.3650184]
[1742030356072,5.43067771,83866.0,83865.0,0.3650184]
[1742030357072,5.44186141,83866.0,83865.0,0.3650184]
[1742030357277,0.178863,83862.0,83860.0,0.01237595]
[1742030357467,0.1828425,83861.0,83860.0,0.52]
[1742030357668,0.1828425,83861.0,83860.0,0.3792439]
[1742030358168,0.1828425,83861.0,83860.0,0.26]
[1742030358367,0.3968481,83861.0,83860.0,0.26]
[1742030358870,0.3968481,83861.0,83860.0,0.262]
[1742030359579,0.3968481,83861.0,83860.0,0.264]
[1742030360167,0.1192539,83853.0,83851.0,0.1192563]
[1742030360362,0.1192624,83848.0,83847.0,0.2385175]
[1742030360563,0.1192624,83848.0,83847.0,0.5285175]
[1742030360769,0.1822624,83848.0,83847.0,0.5285175]
[1742030360980,0.1822624,83848.0,83847.0,0.5913175]
[1742030361170,0.1822624,83848.0,83847.0,0.60379689]
[1742030361565,0.1782624,83848.0,83847.0,0.48454019]
[1742030362266,0.1782624,83848.0,83847.0,0.49054019]
[1742030362670,0.1782624,83848.0,83847.0,0.43590899]
[1742030362866,0.5390624,83848.0,83847.0,0.43274179]
[1742030363071,0.5390624,83848.0,83847.0,0.31347939]
[1742030363577,0.5390624,83848.0,83847.0,0.03347939]
[1742030364170,0.5390624,83848.0,83847.0,0.03247939]
[1742030364474,0.5390624,83848.0,83847.0,0.03047939]
[1742030365580,0.753068,83848.0,83847.0,0.02047939]
[1742030366293,0.753068,83848.0,83843.0,0.121057]
[1742030366294,0.1192667,83844.0,83843.0,0.0017889]
[1742030366482,0.3332723,83844.0,83843.0,0.0017889]
[1742030366685,0.1192724,83840.0,83837.0,0.0303]
[1742030366878,0.694078,83840.0,83839.0,0.18017889]
[1742030367182,0.694078,83840.0,83839.0,0.01244288]
[1742030367379,0.692078,83840.0,83839.0,0.01244288]
[1742030367576,0.720278,83840.0,83839.0,0.01244288]
[1742030367973,0.720278,83840.0,83839.0,0.00017889]
[1742030368276,0.1192838,83832.0,83831.0,0.1495852]
[1742030368470,0.1192838,83832.0,83831.0,0.2806852]
[1742030368880,0.1832838,83832.0,83831.0,0.17360723]
[1742030369680,0.1832838,83832.0,83831.0,0.29289243]
[1742030370084,0.1832838,83832.0,83831.0,0.29389243]
[1742030370488,0.1832838,83832.0,83831.0,0.29489243]
[1742030372088,0.3972894,83832.0,83831.0,0.29489243]
[1742030373084,0.3972894,83832.0,83831.0,0.17560723]
[1742030373386,0.3972894,83832.0,83825.0,0.1192932]
[1742030373387,0.1789419,83826.0,83825.0,0.1192932]
[1742030373587,0.1789419,83826.0,83825.0,0.3892932]
[1742030374288,0.0596468,83826.0,83825.0,0.3892932]
[1742030374695,0.0596468,83826.0,83825.0,0.3912932]
[1742030375589,0.0596468,83826.0,83825.0,0.28434901]
[1742030375785,0.1236468,83826.0,83825.0,0.43574271]
[1742030376090,0.1236468,83826.0,83825.0,0.43774271]
[1742030376794,0.13451298,83826.0,83825.0,0.43774271]
[1742030377089,0.34851858,83826.0,83825.0,0.43774271]
[1742030378796,0.3376524,83826.0,83825.0,0.43774271]
[1742030378997,0.3376524,83826.0,83825.0,0.70774271]
[1742030379199,0.3376524,83826.0,83825.0,0.43774271]
[1742030379586,0.3376524,83826.0,83825.0,0.01634901]
[1742030379792,0.3376524,83826.0,83825.0,0.26634901]
[1742030380194,0.3376524,83826.0,83825.0,0.38564271]
[1742030380594,0.3376524,83826.0,83825.0,0.29694901]
[1742030381094,0.3376524,83826.0,83825.0,0.41624271]
[1742030381599,0.6984524,83826.0,83825.0,0.41624271]
[1742030383790,0.2736524,83826.0,83825.0,0.41624271]
[1742030384191,0.3043524,83826.0,83825.0,0.41624271]
[1742030384392,0.2736524,83826.0,83825.0,0.16624271]
[1742030384591,0.2140056,83826.0,83825.0,0.37624271]
[1742030384792,4.7614216,83826.0,83825.0,0.63624271]
[1742030385595,4.7614216,83826.0,83825.0,0.66674271]
[1742030386100,4.8807139,83826.0,83825.0,0.66674271]
[1742030386494,4.8807139,83826.0,83825.0,0.40674271]
[1742030387001,4.8807139,83826.0,83825.0,0.40574271]
[1742030387201,4.9115139,83826.0,83825.0,0.40474271]
[1742030388503,4.8807139,83826.0,83825.0,0.40474271]
[1742030390005,4.7614216,83826.0,83825.0,0.65474271]
[1742030390403,4.8807139,83826.0,83825.0,0.65474271]
[1742030390902,4.8807139,83826.0,83825.0,0.3434644]
[1742030391201,4.8807139,83826.0,83825.0,0.2434644]
[1742030391405,4.9427139,83826.0,83825.0,0.2434644]
[1742030391600,4.7920216,83826.0,83825.0,0.3056644]
[1742030391796,4.7920216,83826.0,83825.0,0.4156644]
[1742030391992,4.8807139,83826.0,83825.0,0.4464644]
[1742030392605,4.7614216,83826.0,83825.0,0.6964644]
[1742030392804,4.7614216,83826.0,83825.0,0.4464644]
[1742030395805,4.8807139,83826.0,83825.0,0.2434644]
[1742030396002,4.8807139,83826.0,83825.0,0.3045644]
[1742030396202,4.9438139,83826.0,83825.0,0.3045644]
[1742030396896,4.9438139,83826.0,83825.0,0.1241707]
[1742030397103,4.7614216,83826.0,83825.0,0.2434644]
[1742030397707,4.7614216,83826.0,83825.0,0.3076644]
[1742030397905,4.8807139,83826.0,83825.0,0.3076644]
[1742030398509,4.9136139,83826.0,83825.0,0.3076644]
[1742030399311,4.7943216,83826.0,83825.0,0.4176644]
[1742030400600,4.9136139,83826.0,83825.0,0.4176644]
[1742030400805,4.7943216,83826.0,83825.0,0.4176644]
[1742030401208,4.9136139,83826.0,83825.0,0.4176644]
[1742030401412,4.9449139,83826.0,83825.0,0.4176644]
[1742030401799,4.8256216,83826.0,83825.0,0.4176644]
[1742030403115,4.9449139,83826.0,83825.0,0.3076644]
[1742030404214,5.3057139,83826.0,83825.0,0.3076644]
[1742030404415,4.9449139,83826.0,83825.0,0.3076644]
[1742030404619,5.3057139,83826.0,83825.0,0.3076644]
[1742030404818,5.3057139,83826.0,83825.0,0.1551707]
[1742030405112,5.5197195,83826.0,83825.0,0.2434644]
[1742030406210,0.1192951,83824.0,83820.0,0.1193001]
[1742030406517,0.1192951,83824.0,83817.0,0.0596523]
[1742030406518,0.1193065,83816.0,83815.0,0.1789603]
[1742030406706,0.3333121,83816.0,83815.0,0.1789603]
[1742030407303,0.3946121,83816.0,83815.0,0.19091452]
[1742030407507,0.3926121,83816.0,83815.0,0.19091452]
[1742030407702,0.3926121,83816.0,83815.0,0.0596536]
[1742030408217,0.3906121,83816.0,83815.0,0.0596536]
[1742030409731,0.3906121,83816.0,83815.0,0.07472162]
[1742030410316,0.3906121,83816.0,83815.0,0.07372162]
[1742030410620,0.3906121,83816.0,83815.0,0.01406802]
[1742030411018,0.40160457,83816.0,83815.0,0.01406802]
[1742030411633,0.40160457,83816.0,83815.0,0.002]
[1742030412532,0.40160457,83816.0,83815.0,0.1213079]
[1742030412722,0.40160457,83816.0,83815.0,0.1335794]
[1742030413432,0.40260457,83816.0,83815.0,0.1666794]
[1742030413726,0.40260457,83816.0,83815.0,0.0463715]
[1742030413727,0.40254986,83816.0,83815.0,0.0463715]
[1742030413926,0.40254986,83816.0,83815.0,0.0132715]
[1742030414227,0.3926121,83816.0,83815.0,0.0122715]
[1742030414435,0.1193108,83813.0,83812.0,0.0331]
[1742030414628,0.3333164,83813.0,83812.0,0.0631]
[1742030414835,0.1193108,83813.0,83812.0,0.0631]
[1742030415222,0.1825108,83813.0,83812.0,0.0631]
[1742030415925,0.1825108,83813.0,83812.0,0.1824122]
[1742030416126,0.1825108,83813.0,83812.0,0.51593262]
[1742030416326,0.3965164,83813.0,83812.0,0.01222042]
[1742030416531,0.1193165,83809.0,83806.0,0.1193206]
[1742030416729,0.6941221,83809.0,83808.0,0.10401381]
[1742030417338,0.6941221,83809.0,83802.0,0.0596626]
[1742030417339,0.2140056,83808.0,83800.0,0.2193288]
[1742030417638,0.4556,83809.0,83802.0,0.0313]
[1742030417639,0.119325,83803.0,83802.0,0.0313]
[1742030417837,0.119325,83803.0,83802.0,0.4310265]
[1742030418027,0.119325,83803.0,83802.0,0.07]
[1742030418227,0.118325,83803.0,83802.0,0.08222533]
[1742030418435,0.181525,83803.0,83802.0,0.20155183]
[1742030418733,0.181525,83803.0,83802.0,0.20455183]
[1742030418923,0.181525,83803.0,83802.0,0.26795183]
[1742030420733,0.181525,83803.0,83802.0,0.23495183]
[1742030421439,0.181525,83803.0,83802.0,0.26695183]
[1742030422838,0.182525,83803.0,83802.0,0.26695183]
[1742030423224,0.0632,83803.0,83802.0,0.26695183]
[1742030423428,0.0632,83803.0,83802.0,0.37695183]